bitfinex-derivatives/quotes_SOLF0:USTF0_20251023
["timestamp","ask_amount","ask_price","bid_price","bid_amount"]
[1761257801576,2.76,189.49,189.42,4.7499]
[1761257801875,2.76,189.49,189.43,2.21204537]
[1761257803473,2.76,189.49,189.41,2.21204537]
[1761257803681,2.76,189.49,189.38,2.21204537]
[1761257804587,2.76,189.49,189.37,2.21204537]
[1761257806783,2.76,189.47,189.37,2.21204537]
[1761257808587,2.76,189.47,189.36,2.21204537]
[1761257809089,2.76,189.44,189.33,2.21204537]
[1761257809479,2.76,189.44,189.36,2.21204537]
[1761257810680,2.76,189.44,189.37,1.41257552]
[1761257811087,2.76,189.43,189.37,1.41257552]
[1761257811291,2.76,189.43,189.35,1.41257552]
[1761257816689,4.17257552,189.43,189.35,1.41257552]
[1761257816884,2.76,189.42,189.35,1.41257552]
[1761257823298,4.17257552,189.42,189.34,1.41257552]
[1761257823503,2.63,189.41,189.34,1.41257552]
[1761257825097,2.63,189.41,189.36,1.41257552]
[1761257825498,2.63,189.41,189.3,107.40559891]
[1761257825499,2.63,189.41,189.34,1.41257552]
[1761257827305,2.63,189.4,189.34,1.41257552]
[1761257830908,2.63,189.4,189.36,1.41257552]
[1761257831406,2.63,189.4,189.38,1.41257552]
[1761257841816,2.63,189.44,189.38,1.41257552]
[1761257842010,2.63,189.44,189.43,1.41257552]
[1761257845823,2.63,189.44,189.41,1.41257552]
[1761257849123,2.63,189.44,189.34,4.7517]
[1761257849314,2.63,189.44,189.39,1.41257552]
[1761257851837,2.63,189.44,189.35,4.7515]
[1761257852043,2.86,189.43,189.37,1.41257552]
[1761257852341,2.86,189.42,189.39,1.41257552]
[1761257854240,2.86,189.42,189.37,1.41257552]
[1761257854942,1.41257552,189.46,189.37,1.41257552]
[1761257855142,2.86,189.47,189.41,1.41257552]
[1761257855441,4.27257552,189.47,189.39,1.41257552]
[1761257855645,2.86,189.46,189.39,1.41257552]
[1761257855838,2.86,189.45,189.39,1.41257552]
[1761257856441,2.86,189.44,189.39,1.41257552]
[1761257865752,2.86,189.44,189.35,4.7515]
[1761257865946,2.86,189.44,189.37,1.41257552]
[1761257867154,2.86,189.44,189.34,4.7518]
[1761257867155,2.86,189.44,189.41,1.41257552]
[1761257867648,2.86,189.44,189.39,1.41257552]
[1761257870646,2.86,189.44,189.41,1.41257552]
[1761257870849,2.86,189.44,189.39,2.20643918]
[1761257873050,2.86,189.44,189.36,2.20643918]
[1761257876149,2.86,189.43,189.31,6.5513899]
[1761257876453,2.86,189.43,189.3,116.16342799]
[1761257876454,2.86,189.42,189.3,116.16342799]
[1761257878152,2.86,189.42,189.3,109.61203809]
[1761257880155,2.86,189.42,189.33,2.20643918]
[1761257885150,2.86,189.42,189.3,2.20643918]
[1761257885357,2.86,189.42,189.33,2.20643918]
[1761257885763,2.86,189.42,189.28,116.00147303]
[1761257885961,2.86,189.42,189.31,2.20643918]
[1761257886855,2.20643918,189.41,189.28,2.20643918]
[1761257887158,2.73,189.39,189.25,2.20643918]
[1761257887359,2.73,189.37,189.25,2.20643918]
[1761257887959,4.9318367,189.37,189.25,2.20643918]
[1761257888255,2.73,189.36,189.25,2.20643918]
[1761257904265,2.73,189.36,189.28,2.20643918]
[1761257904973,2.73,189.36,189.31,2.20643918]
[1761257905468,2.73,189.36,189.27,2.20643918]
[1761257909968,2.73,189.36,189.3,2.20643918]
[1761257910569,2.73,189.36,189.27,2.20643918]
[1761257910772,2.73,189.36,189.26,2.20643918]
[1761257911981,2.73,189.36,189.23,2.20643918]
[1761257912274,2.64,189.33,189.23,2.20643918]
[1761257916273,2.64,189.32,189.23,2.20643918]
[1761257916474,2.64,189.31,189.23,2.20643918]
[1761257929088,2.64,189.31,189.26,2.20643918]
[1761257932690,2.64,189.31,189.27,1.41438979]
[1761257933387,2.64,189.31,189.25,1.41438979]
[1761257934584,2.64,189.31,189.2,105.37828654]
[1761257934585,2.64,189.29,189.21,1.41438979]
[1761257935389,2.64,189.29,189.23,1.41438979]
[1761257936595,2.64,189.29,189.25,1.41438979]
[1761257937089,2.64,189.29,189.23,1.41438979]
[1761257944300,2.64,189.29,189.16,11.31407689]
[1761257944489,2.67,189.28,189.21,1.41438979]
[1761257945293,2.67,189.26,189.19,1.41438979]
[1761257945700,2.67,189.29,189.23,1.41438979]
[1761257947399,2.67,189.29,189.21,1.41438979]
[1761257952401,2.67,189.28,189.21,1.41438979]
[1761257952604,2.67,189.28,189.23,1.41438979]
[1761257953304,3.8125718,189.29,189.23,1.41438979]
[1761257953505,2.67,189.27,189.23,1.41438979]
[1761257953903,2.67,189.26,189.23,1.41438979]
[1761257954101,2.67,189.25,189.23,1.41438979]
[1761257955602,2.67,189.25,189.17,4.7561]
[1761257955795,2.67,189.25,189.22,1.41438979]
[1761257957100,6.48635608,189.25,189.22,1.41438979]
[1761257957408,2.67,189.25,189.22,1.41438979]
[1761257959309,2.67,189.24,189.2,1.41438979]
[1761257959703,2.67,189.24,189.15,4.7565]
[1761257960006,2.67,189.24,189.17,1.41438979]
[1761257960405,2.67,189.23,189.17,1.41438979]
[1761257961607,2.67,189.23,189.19,1.41438979]
[1761257962706,1.41438979,189.28,189.19,1.41438979]
[1761257962914,2.67,189.26,189.19,1.41438979]
[1761257963410,2.67,189.29,189.23,1.41438979]
[1761257963612,2.67,189.29,189.25,1.41438979]
[1761257964206,6.48530739,189.29,189.25,1.41438979]
[1761257964404,2.67,189.29,189.25,1.41438979]
[1761257964812,6.48505687,189.32,189.25,1.41438979]
[1761257965013,2.67,189.31,189.25,1.41438979]
[1761257966110,2.67,189.3,189.25,1.41438979]
[1761257966311,2.67,189.29,189.25,1.41438979]
[1761257966513,2.67,189.28,189.25,1.41438979]
[1761257967603,2.67,189.28,189.23,1.41438979]
[1761257968205,2.67,189.28,189.17,4.7561]
[1761257968412,2.76,189.27,189.22,1.41438979]
[1761257970519,3.81577208,189.3,189.22,1.41438979]
[1761257970819,6.57577208,189.3,189.24,1.41438979]
[1761257971022,2.76,189.29,189.24,1.41438979]
[1761257973118,2.76,189.28,189.24,1.41438979]
[1761257975943,2.76,189.33,189.26,1.41438979]
[1761257976227,2.76,189.32,189.29,1.41438979]
[1761257976427,6.57765048,189.32,189.29,1.41438979]
[1761257976622,3.81765048,189.31,189.27,1.41438979]
[1761257976825,6.57765048,189.31,189.27,1.41438979]
[1761257977128,2.76,189.31,189.27,1.41438979]
[1761257977923,6.57697572,189.31,189.27,1.41438979]
[1761257978232,2.76,189.31,189.27,1.41438979]
[1761257980423,4.17438979,189.31,189.18,9.85233675]
[1761257980628,4.17438979,189.26,189.17,1.41438979]
[1761257980829,4.17438979,189.26,189.18,6.57249155]
[1761257981332,4.17438979,189.26,189.18,11.32829155]
[1761257981534,2.76,189.26,189.19,1.41438979]
[1761257983437,2.76,189.26,189.19,6.16998979]
[1761257983840,4.17438979,189.26,189.19,6.16998979]
[1761257986641,2.76,189.26,189.19,6.16998979]
[1761257987442,1.41438979,189.29,189.2,4.7553]
[1761257987841,2.76,189.28,189.2,4.7553]
[1761257988038,2.76,189.28,189.19,1.41438979]
[1761257989344,4.17438979,189.28,189.19,1.41438979]
[1761257989649,2.76,189.27,189.19,6.16998979]
[1761257990043,1.41438979,189.26,189.19,4.7556]
[1761257990343,4.17438979,189.26,189.19,4.7556]
[1761257991545,2.76,189.26,189.19,4.7556]
[1761258000738,2.76,189.26,189.18,6.57249155]
[1761258000938,2.76,189.26,189.17,11.32849155]
[1761258001337,2.76,189.26,189.17,6.57249155]
[1761258002248,2.76,189.26,189.17,11.32859155]
[1761258003951,2.81,189.25,189.14,6.57249155]
[1761258004251,2.81,189.25,189.13,111.00076462]
[1761258004953,2.81,189.25,189.14,4.7568]
[1761258005144,2.81,189.22,189.13,110.08094488]
[1761258005344,2.81,189.22,189.13,103.50845333]
[1761258006147,2.81,189.22,189.13,110.08094488]
[1761258006353,2.81,189.22,189.13,103.50845333]
[1761258007553,2.81,189.19,189.11,43.84]
[1761258011658,2.81,189.19,189.11,43.84]
[1761258017762,2.81,189.19,189.11,46.05126162]
[1761258023463,2.81,189.19,189.08,2.21126162]
[1761258024967,2.81,189.19,189.04,5.67942106]
[1761258025172,2.81,189.19,189.05,2.21126162]
[1761258025669,2.81,189.19,189.05,6.97036162]
[1761258026574,2.87,189.18,189.05,6.97036162]
[1761258026773,2.87,189.17,189.05,6.97036162]
[1761258026974,2.87,189.16,189.01,2.21126162]
[1761258027169,2.87,189.13,189.01,2.21126162]
[1761258027771,2.87,189.13,189.0,4.7603]
[1761258028074,2.87,189.13,189.01,2.21126162]
[1761258028275,2.87,189.13,188.99,102.58986865]
[1761258028470,2.87,189.13,189.0,2.21126162]
[1761258029773,2.87,189.13,189.0,6.97156162]
[1761258029962,2.87,189.13,189.03,2.21126162]
[1761258030779,2.87,189.13,189.0,4.7603]
[1761258030975,2.87,189.13,189.02,2.21126162]
[1761258037085,2.87,189.13,189.03,4.7596]
[1761258037581,2.87,189.13,189.05,2.21126162]
[1761258038288,2.87,189.13,189.01,2.21126162]
[1761258038485,2.9,189.11,188.99,102.58986865]
[1761258040380,2.9,189.1,188.99,102.58986865]
[1761258040977,2.9,189.08,188.99,102.58986865]
[1761258041979,2.9,189.08,188.98,2.21126162]
[1761258048588,2.9,189.08,188.94,43.86]
[1761258048894,2.9,189.08,189.0,2.21126162]
[1761258054793,2.9,189.08,189.02,1.41803649]
[1761258055495,2.9,189.08,189.06,1.41803649]
[1761258066401,2.9,189.08,189.04,1.41803649]
[1761258069397,2.9,189.08,189.01,4.7601]
[1761258069601,1.41803649,189.07,189.0,1.41803649]
[1761258069900,2.75,189.06,188.98,1.41803649]
[1761258070296,2.75,189.06,189.0,1.41803649]
[1761258071198,2.75,189.06,189.02,1.41803649]
[1761258074812,2.75,189.06,188.99,1.41803649]
[1761258075107,3.82326391,189.07,188.99,1.41803649]
[1761258075108,2.75,189.05,188.99,1.41803649]
[1761258076815,2.75,189.08,189.03,1.41803649]
[1761258081524,2.75,189.09,189.05,1.41803649]
[1761258083424,2.75,189.09,189.03,1.41803649]
[1761258083923,2.75,189.08,189.01,1.41803649]
[1761258084317,2.75,189.07,189.01,1.41803649]
[1761258087221,3.82676131,189.1,189.03,1.41803649]
[1761258087423,2.65,189.1,189.03,1.41803649]
[1761258088025,2.65,189.09,189.03,1.41803649]
[1761258088729,2.65,189.09,189.05,1.41803649]
[1761258089023,2.71,189.08,189.03,1.41803649]
[1761258097031,2.71,189.08,189.05,1.41803649]
[1761258097233,2.71,189.08,189.01,1.41803649]
[1761258098030,2.71,189.07,189.01,1.41803649]
[1761258100333,2.71,189.07,188.99,4.7605]
[1761258100834,2.71,189.07,189.0,6.59334003]
[1761258102435,2.71,189.07,189.0,11.35364003]
[1761258106036,2.71,189.07,188.99,6.59334003]
[1761258106941,4.7596,189.04,188.99,6.59334003]
[1761258107134,2.71,189.03,188.99,6.59334003]
[1761258107442,2.71,189.03,188.99,11.35394003]
[1761258107632,7.4696,189.04,188.99,11.35394003]
[1761258108545,4.7596,189.04,188.99,11.35394003]
[1761258108732,4.7596,189.04,189.0,1.41803649]
[1761258109040,7.4696,189.04,189.0,1.41803649]
[1761258109838,4.7596,189.04,189.0,1.41803649]
[1761258110040,4.759,189.06,189.0,8.01137652]
[1761258110235,7.469,189.06,189.01,6.59334003]
[1761258110734,7.469,189.06,189.02,1.41803649]
[1761258111335,4.759,189.06,189.02,1.41803649]
[1761258113239,7.469,189.06,189.02,1.41803649]
[1761258114743,7.469,189.06,189.01,11.35344003]
[1761258116045,2.71,189.1,189.01,6.59334003]
[1761258116243,2.71,189.13,189.05,2.21500819]
[1761258116544,2.71,189.13,189.06,43.84]
[1761258117941,2.71,189.13,189.06,48.5988]
[1761258118147,2.71,189.13,189.07,11.38637152]
[1761258118348,2.71,189.13,189.08,4.79303149]
[1761258118544,2.71,189.16,189.09,4.79303149]
[1761258118750,2.71,189.16,189.1,4.79303149]
[1761258119041,2.71,189.16,189.11,4.79303149]
[1761258119250,7.5671,189.14,189.12,4.79303149]
[1761258119445,7.5671,189.14,189.13,4.79303149]
[1761258122254,2.81,189.16,189.06,50.43334003]
[1761258123348,2.81,189.16,189.06,43.84]
[1761258124150,2.81,189.16,189.06,48.5988]
[1761258125052,2.81,189.16,189.06,55.19214003]
[1761258126456,2.81,189.16,189.06,48.5988]
[1761258131559,2.81,189.16,189.07,4.7586]
[1761258131754,2.81,189.16,189.06,50.43334003]
[1761258132552,2.81,189.16,189.08,4.7583]
[1761258133459,2.81,189.16,189.08,2.21500819]
[1761258134854,2.81,189.16,189.1,4.7578]
[1761258138057,2.81,189.16,189.08,2.21500819]
[1761258138259,2.81,189.16,189.08,6.97330819]
[1761258138662,2.81,189.16,189.06,55.19204003]
[1761258138956,2.81,189.16,189.06,43.84]
[1761258139962,2.81,189.16,189.07,4.7586]
[1761258143465,2.81,189.16,189.06,43.84]
[1761258144958,2.81,189.16,189.06,48.5988]
[1761258148152,2.81,189.16,189.06,43.84]
[1761258148358,2.86,189.11,189.03,6.59334003]
[1761258148664,2.86,189.08,188.99,6.59334003]
[1761258148862,2.86,189.08,188.98,151.73422973]
[1761258149266,2.86,189.08,188.99,6.59334003]
[1761258150161,2.86,189.08,188.98,112.69502973]
[1761258151668,2.86,189.08,188.98,107.93422973]
[1761258158605,2.86,189.08,188.98,101.3408897]
[1761258158881,2.81,189.05,188.98,101.3408897]
[1761258159476,2.81,189.05,188.96,43.8]
[1761258170788,2.81,189.05,188.9,2.21500819]
[1761258172796,2.81,189.05,188.9,6.97790819]
[1761258173697,2.21500819,189.03,188.9,6.97790819]
[1761258173897,2.81,189.02,188.9,6.97790819]
[1761258174788,2.81,189.0,188.92,1.4193283]
[1761258174991,2.81,189.0,188.94,1.4193283]
[1761258175492,2.81,189.0,188.96,1.4193283]
[1761258177693,2.81,189.0,188.94,1.4193283]
[1761258178696,2.81,189.0,188.96,1.4193283]
[1761258180604,4.0793283,189.12,188.98,1.4193283]
[1761258180902,2.66,189.11,189.03,1.4193283]
[1761258182005,4.7594,189.04,189.03,1.4193283]
[1761258183402,7.4194,189.04,189.03,1.4193283]
[1761258183806,4.7601,189.02,189.0,1.4193283]
[1761258185901,2.66,189.04,188.94,11.35514003]
[1761258186093,1.4193283,189.03,188.91,6.59334003]
[1761258186297,2.66,189.02,188.94,1.4193283]
[1761258186506,4.761,188.98,188.96,1.4193283]
[1761258187499,4.761,188.98,188.94,1.4193283]
[1761258191604,4.7613,188.97,188.92,6.59334003]
[1761258191806,2.66,189.06,188.91,8.01266833]
[1761258192005,2.66,189.06,188.88,53.67233675]
[1761258192006,2.66,189.05,188.99,1.4193283]
[1761258192305,2.66,189.05,189.01,1.4193283]
[1761258192306,4.7593,189.05,189.01,1.4193283]
[1761258199517,7.4193,189.05,189.01,1.4193283]
[1761258200714,7.4193,189.05,188.99,6.1799283]
[1761258204123,2.66,189.03,188.97,12.77376833]
[1761258204821,2.66,189.02,188.96,6.59334003]
[1761258205024,2.66,189.02,188.95,8.01266833]
[1761258205318,2.66,189.02,188.95,1.4193283]
[1761258206120,7.4203,189.01,188.95,6.1808283]
[1761258206321,7.4203,189.01,188.95,8.01266833]
[1761258206715,4.7598,189.03,188.97,1.4193283]
[1761258206919,7.4098,189.03,188.97,1.4193283]
[1761258207220,2.65,189.02,188.97,1.4193283]
[1761258208121,2.65,189.02,188.97,6.1804283]
[1761258211419,2.65,189.02,188.97,12.77376833]
[1761258213022,2.77,189.05,188.98,4.7609]
[1761258213220,2.77,189.05,188.99,1.4193283]
[1761258215731,2.77,189.05,188.98,4.7609]
[1761258224237,2.77,189.05,188.98,11.35424003]
[1761258238755,2.77,189.05,188.97,6.59334003]
[1761258238958,2.77,189.05,188.95,6.59334003]
[1761258239659,2.77,189.05,188.96,6.59334003]
[1761258240254,2.77,189.05,188.97,6.59334003]
[1761258240456,7.76461231,189.08,188.97,6.59334003]
[1761258240658,2.83,189.08,188.99,6.59334003]
[1761258240858,2.83,189.08,189.0,6.59334003]
[1761258241661,2.83,189.07,189.01,4.76]
[1761258245466,2.83,189.07,189.02,4.7598]
[1761258245760,4.7585,189.08,189.02,13.56942376]
[1761258246065,7.588,189.1,189.03,4.7596]
[1761258247463,2.83,189.12,189.01,13.56972376]
[1761258248262,2.83,189.12,189.01,6.97638373]
[1761258248762,2.83,189.12,189.01,11.35344003]
[1761258248969,4.7586,189.08,189.01,11.35344003]
[1761258249167,7.5886,189.08,189.01,11.35344003]
[1761258249560,2.83,189.07,189.01,11.35344003]
[1761258250863,7.5888,189.07,189.01,11.35344003]
[1761258253671,7.5883,189.09,189.01,11.35344003]
[1761258253871,7.5883,189.09,189.01,8.80962376]
[1761258254969,7.5883,189.09,189.03,4.7596]
[1761258256971,2.83,189.09,189.03,4.7596]
[1761258257174,4.7578,189.11,189.04,4.7593]
[1761258257363,7.5878,189.11,189.04,4.7593]
[1761258259260,2.83,189.1,189.04,4.7593]
[1761258259467,2.83,189.09,189.04,4.7593]
[1761258260970,2.83,189.08,189.04,4.7593]
[1761258264772,2.83,189.07,189.0,6.59334003]
[1761258264963,2.83,189.07,188.98,6.59334003]
[1761258265361,7.5893,189.05,188.99,4.7606]
[1761258265968,2.83,189.04,188.99,4.7606]
[1761258267079,2.83,189.04,188.98,6.59334003]
[1761258268172,2.83,189.04,188.97,50.35334003]
[1761258268978,2.64,189.03,188.95,6.59334003]
[1761258269478,2.64,189.01,188.94,6.59334003]
[1761258269776,2.64,189.01,188.93,50.35334003]
[1761258270274,2.64,188.99,188.93,50.35334003]
[1761258271277,2.64,188.99,188.93,43.76]
[1761258286299,2.64,188.99,188.94,2.21628373]
[1761258286996,2.64,188.98,188.94,2.21628373]
[1761258287199,2.64,189.08,188.97,2.21628373]
[1761258287702,7.4003,189.01,188.97,2.21628373]
[1761258287887,2.64,189.0,188.97,2.21628373]
[1761258288398,2.64,188.99,188.97,2.21628373]
[1761258290097,2.64,188.99,188.96,2.21628373]
[1761258298708,2.64,188.99,188.98,1.41844008]
[1761258299706,2.64,188.99,188.93,48.5221]
[1761258299908,2.64,188.99,188.98,1.41844008]
[1761258304007,2.66,189.19,188.98,76.53774008]
[1761258304210,4.9247709,189.29,189.18,1.41844008]
[1761258304407,1.41844008,189.28,189.2,1.41844008]
[1761258305012,1.41844008,189.24,189.16,1.41844008]
[1761258306213,2.66,189.21,189.13,1.41844008]
[1761258306414,2.66,189.21,189.15,1.41844008]
[1761258306915,2.66,189.21,189.13,1.41844008]
[1761258313230,2.66,189.2,189.13,1.41844008]
[1761258316733,2.66,189.2,189.12,1.41844008]
[1761258316930,2.66,189.2,189.1,1.41844008]
[1761258316931,2.66,189.19,189.1,1.41844008]
[1761258317928,2.66,189.19,189.12,1.41844008]
[1761258324944,2.66,189.17,189.06,43.86]
[1761258325144,4.07844008,189.17,189.08,1.41844008]
[1761258325338,2.66,189.16,189.08,1.41844008]
[1761258326142,2.66,189.16,189.11,1.41844008]
[1761258329741,2.66,189.16,189.04,4.7593]
[1761258330047,2.66,189.16,189.1,1.41844008]
[1761258330546,2.66,189.16,189.12,1.41844008]
[1761258331542,2.7,189.22,189.14,1.41844008]
[1761258337653,2.7,189.21,189.14,1.41844008]
[1761258340349,2.7,189.19,189.12,1.41844008]
[1761258346059,2.7,189.19,189.12,6.17574008]
[1761258348257,2.7,189.19,189.13,6.55446875]
[1761258348462,2.7,189.19,189.14,1.41844008]
[1761258351559,2.7,189.21,189.14,7.97290883]
[1761258352955,2.7,189.21,189.14,12.72970883]
[1761258358169,2.7,189.21,189.15,4.7566]
[1761258358463,7.2122263,189.25,189.16,1.41844008]
[1761258358674,2.7,189.24,189.17,6.55446875]
[1761258359368,2.7,189.24,189.16,7.97290883]
[1761258359959,2.7,189.24,189.17,4.7561]
[1761258360875,2.71,189.23,189.15,6.55446875]
[1761258361763,2.71,189.23,189.14,6.55446875]
[1761258361957,2.71,189.23,189.14,11.31126875]
[1761258378167,2.71,189.23,189.15,6.55446875]
[1761258378676,2.71,189.23,189.14,11.31126875]
[1761258379180,2.71,189.23,189.15,6.55446875]
[1761258382286,2.71,189.23,189.14,11.31126875]
[1761258384179,2.71,189.23,189.15,6.55446875]
[1761258384374,2.71,189.21,189.12,6.55446875]
[1761258399197,2.71,189.21,189.11,97.65437912]
[1761258399796,2.71,189.21,189.11,102.41187912]
[1761258399991,2.71,189.21,189.13,2.21165335]
[1761258405593,2.71,189.21,189.13,8.7661221]
[1761258406496,2.71,189.21,189.14,6.55446875]
[1761258411505,2.71,189.21,189.14,50.31446875]
[1761258413398,2.71,189.21,189.14,52.5261221]
[1761258422831,2.71,189.21,189.17,1.41572836]
[1761258424520,2.71,189.21,189.13,4.7571]
[1761258424521,2.79,189.24,189.2,1.41572836]
[1761258424726,2.79,189.27,189.23,1.41572836]
[1761258426532,2.79,189.27,189.26,1.41572836]
[1761258427133,2.79,189.29,189.26,1.41572836]
[1761258427328,2.79,189.29,189.28,1.41572836]
[1761258427736,2.79,189.29,189.26,1.41572836]
[1761258434539,2.79,189.29,189.28,1.41572836]
[1761258438851,2.79,189.29,189.2,43.74]
[1761258439151,2.79,189.29,189.28,1.41572836]
[1761258442957,2.79,189.29,189.26,1.41572836]
[1761258446849,2.63,189.34,189.26,1.41572836]
[1761258447452,2.63,189.34,189.3,1.41572836]
[1761258453264,2.63,189.34,189.21,6.55446875]
[1761258453467,2.83,189.32,189.25,1.41572836]
[1761258460781,2.83,189.3,189.23,1.41572836]
[1761258468478,2.83,189.3,189.24,1.41572836]
[1761258480398,2.71,189.29,189.22,1.41572836]
[1761258480702,2.71,189.29,189.24,1.41572836]
[1761258481798,2.71,189.29,189.22,1.41572836]
[1761258482888,2.71,189.29,189.19,8.76542926]
[1761258483391,2.71,189.29,189.19,2.21096051]
[1761258484901,2.71,189.29,189.19,8.76542926]
[1761258485298,2.71,189.29,189.19,2.21096051]
[1761258485494,2.71,189.29,189.22,2.21096051]
[1761258485897,2.71,189.32,189.25,2.21096051]
[1761258486408,4.5032432,189.34,189.25,2.21096051]
[1761258486592,7.2132432,189.35,189.25,2.21096051]
[1761258486792,2.71,189.35,189.27,2.21096051]
[1761258489195,4.5032432,189.37,189.3,2.21096051]
[1761258489400,2.71,189.38,189.3,2.21096051]
[1761258489807,4.53199612,189.4,189.33,2.21096051]
[1761258490001,4.93435144,189.43,189.33,2.21096051]
[1761258490002,2.71,189.41,189.33,2.21096051]
[1761258492498,2.71,189.41,189.28,11.30796875]
[1761258492708,2.71,189.41,189.32,2.21096051]
[1761258494214,2.71,189.41,189.35,2.21096051]
[1761258495101,2.71,189.45,189.35,2.21096051]
[1761258498007,2.71,189.45,189.38,2.21096051]
[1761258498213,2.71,189.47,189.38,2.21096051]
[1761258510115,2.73,189.45,189.27,8.76542926]
[1761258510419,2.73,189.45,189.33,2.21096051]
[1761258510614,2.73,189.45,189.3,4.7529]
[1761258510813,2.73,189.45,189.33,2.21096051]
[1761258514222,2.73,189.42,189.3,2.21096051]
[1761258515427,2.73,189.39,189.23,6.55446875]
[1761258515721,2.73,189.39,189.22,152.04]
[1761258515722,2.73,189.36,189.24,2.21096051]
[1761258519724,2.21096051,189.43,189.3,2.21096051]
[1761258519725,2.73,189.42,189.3,2.21096051]
[1761258520314,2.73,189.42,189.34,2.21096051]
[1761258526831,2.73,189.42,189.37,2.21096051]
[1761258527329,2.73,189.48,189.37,2.21096051]
[1761258528029,2.73,189.51,189.43,2.21096051]
[1761258532935,4.44070498,189.56,189.5,2.21096051]
[1761258533126,2.73,189.59,189.53,2.21096051]
[1761258533436,2.73,189.59,189.54,2.21096051]
[1761258534234,2.73,189.59,189.45,111.29504578]
[1761258534431,2.73,189.59,189.51,2.21096051]
[1761258534829,4.747,189.55,189.51,2.21096051]
[1761258535027,7.477,189.55,189.51,2.21096051]
[1761258535734,2.73,189.54,189.51,2.21096051]
[1761258540135,7.4772,189.54,189.51,2.21096051]
[1761258540436,2.88,189.53,189.48,2.21096051]
[1761258543531,2.88,189.53,189.45,95.41504578]
[1761258544141,2.88,189.53,189.45,93.20408527]
[1761258544838,2.88,189.52,189.45,94.61569859]
[1761258545138,2.88,189.5,189.43,1.41161332]
[1761258548042,2.88,189.5,189.39,48.5506]
[1761258548240,2.88,189.5,189.46,1.41161332]
[1761258559743,2.88,189.5,189.48,1.41161332]
[1761258559949,2.88,189.57,189.48,1.41161332]
[1761258560142,2.88,189.57,189.51,1.41161332]
[1761258566154,2.88,189.57,189.45,4.7491]
[1761258566358,2.88,189.57,189.51,1.41161332]
[1761258568856,2.88,189.57,189.49,1.41161332]
[1761258569056,4.46737104,189.6,189.43,4.7496]
[1761258569057,2.72,189.55,189.48,1.41161332]
[1761258570254,2.72,189.54,189.48,1.41161332]
[1761258574767,4.13161332,189.54,189.46,1.41161332]
[1761258575062,2.72,189.53,189.46,1.41161332]
[1761258575263,2.72,189.53,189.43,4.7496]
[1761258575462,2.72,189.53,189.47,1.41161332]
[1761258576464,2.72,189.53,189.41,4.7501]
[1761258576665,2.72,189.53,189.45,1.41161332]
[1761258578165,2.72,189.52,189.45,1.41161332]
[1761258579068,2.72,189.51,189.45,1.41161332]
[1761258580865,1.41161332,189.5,189.43,1.41161332]
[1761258581070,2.72,189.49,189.41,1.41161332]
[1761258582370,2.72,189.49,189.44,1.41161332]
[1761258582768,2.72,189.49,189.4,1.41161332]
[1761258583068,2.72,189.49,189.42,1.41161332]
[1761258583565,2.72,189.48,189.42,1.41161332]
[1761258585178,2.72,189.48,189.44,1.41161332]
[1761258585681,2.72,189.48,189.4,6.55446875]
[1761258585982,2.72,189.48,189.45,1.41161332]
[1761258589690,2.72,189.48,189.47,1.41161332]
[1761258591202,2.72,189.54,189.47,1.41161332]
[1761258591491,2.72,189.54,189.5,1.41161332]
[1761258593391,2.72,189.54,189.52,1.41161332]
[1761258593593,2.72,189.57,189.52,1.41161332]
[1761258593896,2.72,189.57,189.54,1.41161332]
[1761258600004,2.62,189.6,189.56,1.41161332]